fUSD/lending_fUSD_20250404
["ID","MTS","AMOUNT","RATE_DAILY","PERIOD"]
[357155983,1743804648687,-150.0,0.00049955,7]
[357155984,1743804648696,-150.0,0.00049956,7]
[357155985,1743804648706,-150.0,0.0004996,7]
[357155986,1743804648715,-5000.0,0.0004996,30]
[357155987,1743804648725,-1000.0,0.00049961,30]
[357155988,1743804648734,-150.0,0.00049961,7]
[357155989,1743804648744,-150.0,0.00049965,7]
[357155990,1743804648753,-150.0,0.00049971,7]
[357155991,1743804648763,-182.44809619,0.00049976,30]
[357155992,1743804648773,-150.0,0.00049976,7]
[357155993,1743804648782,-150.0,0.00049983,7]
[357155994,1743804648791,-150.0,0.00049985,7]
[357155995,1743804648802,-150.0,0.00049989,7]
[357155996,1743804648811,-500.0,0.00049989,120]
[357155997,1743804648821,-500.0,0.00049989,120]
[357155998,1743804648830,-150.0,0.00049993,30]
[357155999,1743804648840,-151.49,0.00049994,120]
[357156000,1743804648850,-25128.82738975,0.00049995,15]
[357156001,1743804648860,-150.0,0.00049996,7]
[357156002,1743804648870,-150.0,0.00049996,7]
[357156003,1743804648879,-500.0,0.00049999,120]
[357156004,1743804648889,-500.0,0.00049999,120]
[357156005,1743804648899,-500.0,0.00049999,120]
[357156006,1743804648909,-500.0,0.00049999,120]
[357156007,1743804648919,-1000.0,0.00049999,120]
[357156008,1743804648929,-360.43018839,0.0005,61]
[357156009,1743804648939,-32129.57273266,0.0005,61]
[357156010,1743804648949,-182.229,0.0005,120]
[357156011,1743804648960,-152.82,0.0005,30]
[357156012,1743804648971,-888.31,0.0005,30]
[357156013,1743804648980,-174.7,0.0005,30]
[357156014,1743804648990,-195228.85350665,0.0005,120]
[357156015,1743804649515,-145.04784471,0.00048799,120]
[357156016,1743805533889,2395.0,0.0002639,120]
[357156017,1743805534352,2395.0,0.0002638,120]
[357156018,1743805534801,2395.0,0.0002637,120]
[357156019,1743805535096,-1512.57814722,0.0002,2]
[357156020,1743805537108,-185.87703049,0.00019,2]
[357156021,1743805553276,-426.61804727,0.0002,2]
[357156022,1743805556451,-224.6051,0.0001995,2]
[357156023,1743805567048,-253.56356951,0.00019999,5]
[357156024,1743805575431,-184.14970698,0.00019899,2]
[357156025,1743805591528,1970.05216731,0.00015,2]
[357156026,1743805592096,-172.53979102,0.00019899,2]
[357156027,1743805628906,157.91,0.000153,2]
[357156028,1743805632805,5175.30583271,0.00015,2]
[357156029,1743805632837,1024.42213851,0.00015,2]
[357156030,1743805632866,1468.64161048,0.00015,2]
[357156031,1743805635079,-132.670445,0.00019899,2]
[357156032,1743805635100,-150.03717506,0.00019899,2]
[357156033,1743805635121,-166.68546698,0.00019899,2]
[357156034,1743805635143,-78.40757335,0.00019973,2]
[357156035,1743805636455,16531.35838952,0.00015,2]
[357156036,1743805636477,1703.66223653,0.00015,2]
[357156037,1743805637128,-259.99400323,0.00019973,2]
[357156038,1743805644298,-184.11755892,0.000194,7]
[357156039,1743805646074,-15.88244108,0.000194,7]
[357156040,1743805646095,-429.47012363,0.000195,7]
[357156041,1743805646661,-70.52987637,0.000195,7]
[357156042,1743805648562,-150.0,0.000196,7]
[357156043,1743805649091,-550.0,0.000196,7]
[357156044,1743805649111,-71.04884977,0.00019973,2]
[357156045,1743805649131,-340.46133964,0.00019973,2]
[357156046,1743805649151,-153.86813435,0.00019973,2]
[357156047,1743805649172,-500.0,0.00019973,2]
[357156048,1743805649192,-161.18283971,0.00019973,2]
[357156049,1743805649213,-55.54413686,0.00019998,2]
[357156050,1743805650814,-150.0,0.000197,7]
[357156051,1743805653469,1926.0,0.0002199,120]
[357156052,1743805653966,1926.0,0.0002198,120]
[357156053,1743805654415,1926.0,0.0002197,120]
[357156054,1743805654448,-153.90742366,0.000197,7]
[357156055,1743805682026,809448.69974189,0.00015,2]
[357156056,1743805684279,-203.9244,0.000197,7]
[357156062,1743805746082,-492.16817634,0.000197,7]
[357156063,1743805746103,-250.0,0.0001975,2]
[357156064,1743805746124,-1300.0,0.000198,7]
[357156065,1743805746145,-300.0,0.00019899,2]
[357156066,1743805746167,-200.0,0.000199,7]
[357156067,1743805746188,-5461.49388166,0.000199,2]
[357156068,1743805754090,-263.44608735,0.00019873,2]
[357156069,1743805754112,-1227.58786804,0.000199,2]
[357156073,1743805764095,-3518.85373886,0.000199,2]
[357156074,1743805774091,1349.0,0.0002199,120]
[357156075,1743805774581,1349.0,0.0002198,120]
[357156076,1743805775064,1349.0,0.0002197,120]
[357156092,1743805832322,-300.0,0.00019899,2]
[357156093,1743805832331,-196.59156997,0.000199,2]
[357156094,1743805832346,-252.252,0.000199,2]
[357156095,1743805832388,-4795.441975,0.000199,2]
[357156366,1743805837989,-3623.60042211,0.000199,2]
[357156367,1743805838001,-13707.73284436,0.000199,2]
[357156368,1743805838010,-196.95728751,0.000199,3]
[357156369,1743805838019,-171.26618938,0.000199,2]
[357156370,1743805838030,-174.79938507,0.000199,2]
[357156371,1743805838039,-340.52815564,0.000199,2]
[357156372,1743805838048,-7260.52707661,0.000199,2]
[357156373,1743805838057,-22134.14638552,0.000199,2]
[357156374,1743805838066,-500.0,0.00019973,2]
[357156375,1743805838075,-233.81001591,0.00019973,2]
[357156376,1743805838085,-500.0,0.00019973,2]
[357156377,1743805838094,-357.61207576,0.00019973,2]
[357156378,1743805838103,-152.62423943,0.00019973,2]
[357156379,1743805838112,-400.30995879,0.00019973,2]
[357156380,1743805838121,-309.98002876,0.00019973,2]
[357156381,1743805838131,-500.0,0.00019973,2]
[357156382,1743805838140,-505.63831938,0.00019973,2]
[357156383,1743805838149,-25153.0310029,0.0001999,2]
[357156384,1743805838158,-1722.93,0.0001999,2]
[357156385,1743805838167,-1722.93,0.0001999,2]
[357156386,1743805838177,-1000.0,0.00019999,2]
[357156387,1743805838186,-308.83161985,0.00019999,2]
[357156388,1743805838195,-814.84601049,0.00019999,5]
[357156389,1743805838205,-176.15026574,0.00019999,2]
[357156390,1743805838214,-208.71385738,0.00019999,2]
[357156391,1743805838222,-130279.11296782,0.0002,2]
[357156392,1743805838516,-19096.13409231,0.0002,2]
[357156393,1743805838571,-1118.56041704,0.0002,2]
[357156394,1743805838586,-493.97951791,0.0002,2]
[357156395,1743805838604,-2561252.30638808,0.0002,2]
[357156396,1743805838615,-2611017.19765547,0.0002,2]
[357156399,1743805840316,-2549.05889236,0.0002,2]
[357156400,1743805841787,-85.28730016,0.0002,2]
[357156401,1743805841798,-5940.94477954,0.0002,2]
[357156402,1743805841810,-1138.78380278,0.0002,2]
[357156403,1743805841821,-8391.52698353,0.0002,2]
[357156404,1743805841832,-72660.90180032,0.0002,2]
[357156405,1743805841843,-236905.80942174,0.0002,2]
[357156406,1743805841854,-859.88270971,0.0002,2]
[357156407,1743805841866,-11432.35765034,0.0002,2]
[357156408,1743805841877,-997.4590548,0.0002,2]
[357156409,1743805841889,-308549.79026299,0.0002,2]
[357156410,1743805841898,-149061.11915471,0.0002,4]
[357156411,1743805841907,-6333.11514876,0.0002,4]
[357156412,1743805841916,-1013.0,0.0002,6]
[357156413,1743805841925,-2000.0,0.0002,4]
[357156414,1743805841934,-150.67,0.0002,2]
[357156415,1743805841943,-150.67,0.0002,2]
[357156416,1743805841952,-150.67,0.0002,2]
[357156417,1743805841961,-150.67,0.0002,2]
[357156418,1743805841970,-150.67,0.0002,2]
[357156419,1743805841979,-150.67,0.0002,2]
[357156420,1743805841988,-150.67,0.0002,2]
[357156421,1743805841998,-150.67,0.0002,2]
[357156422,1743805842007,-150.67,0.0002,2]
[357156423,1743805842016,-150.67,0.0002,2]
[357156424,1743805842025,-150.67,0.0002,2]
[357156425,1743805842034,-150.67,0.0002,2]
[357156426,1743805842043,-150.67,0.0002,2]
[357156427,1743805842052,-150.67,0.0002,2]
[357156428,1743805842062,-150.67,0.0002,2]
[357156429,1743805842071,-150.67,0.0002,2]
[357156430,1743805842084,-150.67,0.0002,2]
[357156431,1743805842093,-150.67,0.0002,2]
[357156432,1743805842103,-150.67,0.0002,2]
[357156433,1743805842112,-150.67,0.0002,2]
[357156434,1743805842122,-150.67,0.0002,2]
[357156435,1743805842131,-150.67,0.0002,2]
[357156436,1743805842141,-150.67,0.0002,2]
[357156437,1743805842150,-150.67,0.0002,2]
[357156438,1743805842159,-150.67,0.0002,2]
[357156439,1743805842168,-150.67,0.0002,2]
[357156440,1743805842178,-150.67,0.0002,2]
[357156441,1743805842188,-150.67,0.0002,2]
[357156442,1743805842198,-150.67,0.0002,2]
[357156443,1743805842207,-150.67,0.0002,2]
[357156444,1743805842216,-150.67,0.0002,2]
[357156445,1743805842225,-1668.61138415,0.0002015,2]
[357156446,1743805842235,-1150.94361889,0.00021,2]
[357156447,1743805842244,-189.95753276,0.00021,2]
[357156448,1743805842253,-1061.22254736,0.00021506,2]
[357156449,1743805842263,-250.0,0.0002167,2]
[357156450,1743805842272,-420.0,0.0002167,2]
[357156451,1743805842283,-50233.76950139,0.00021676,2]
[357156452,1743805842291,-6045.74,0.00021676,2]
[357156453,1743805842301,-4773.23,0.00021676,2]
[357156454,1743805842312,-250.0,0.0002189,2]
[357156455,1743805842323,-183.2167155,0.00022,12]
[357156456,1743805842333,-250.0,0.00022,2]
[357156457,1743805842342,-3575.9,0.00022204,2]
[357156458,1743805842352,-503.65607221,0.0002271,2]
[357156459,1743805842363,-402.01720887,0.0002301,2]
[357156460,1743805842372,-150.0,0.00023224,2]
[357156461,1743805842382,-2000.0,0.00023333,4]
[357156462,1743805842395,-587.0,0.00023599,2]
[357156463,1743805842406,-2269.28030699,0.0002361,7]
[357156464,1743805842416,-1000.0,0.0002463,2]
[357156465,1743805842426,-150.726,0.0002463,2]
[357156466,1743805842436,-150.726,0.0002463,2]
[357156467,1743805842446,-150.726,0.0002463,2]
[357156468,1743805842457,-150.726,0.0002463,2]
[357156469,1743805842467,-150.726,0.0002463,2]
[357156470,1743805842477,-150.726,0.0002463,2]
[357156471,1743805842488,-150.726,0.0002463,2]
[357156472,1743805842498,-501.63481894,0.00024773,2]
[357156473,1743805842508,-498.59041,0.00024773,2]
[357156474,1743805842517,-509.99994119,0.00024773,2]
[357156475,1743805842647,-500.0,0.00024773,2]
[357156476,1743805842658,-150.67,0.0002479,2]
[357156477,1743805842668,-150.67,0.0002479,2]
[357156478,1743805842677,-320267.265137,0.000248,3]
[357156479,1743805842687,-152.93536989,0.00024873,2]
[357156480,1743805842696,-500.0,0.00024873,2]
[357156481,1743805842706,-500.0,0.00024873,2]
[357156482,1743805842715,-500.0,0.00024873,2]
[357156483,1743805842725,-150.67,0.0002489,2]
[357156484,1743805842735,-150.67,0.0002489,2]
[357156485,1743805842745,-344110.174911,0.000249,3]
[357156486,1743805842754,-845.4974168,0.00025452,2]
[357156487,1743805842763,-971.30156532,0.00025452,2]
[357156488,1743805842772,-230.41280676,0.00025452,2]
[357156489,1743805842784,-810.0,0.00025699,2]
[357156490,1743805842793,-2526.87986563,0.00026,2]
[357156491,1743805842803,-12247.09681758,0.000264,2]
[357156492,1743805842812,-13254.73,0.000264,2]
[357156493,1743805842821,-1724.7965852,0.00026667,4]
[357156494,1743805842830,-215.07,0.00026705,2]
[357156495,1743805842840,-425.74,0.00026849,2]
[357156496,1743805842849,-30611.82,0.00027392,2]
[357156497,1743805842859,-1000.0,0.00027709,2]
[357156498,1743805842867,-18447.55,0.00028203,10]
[357156499,1743805842876,-1000.04,0.00028203,2]
[357156500,1743805842885,-150.99,0.00028203,2]
[357156501,1743805842894,-9999.99,0.00028203,2]
[357156502,1743805842904,-9999.99,0.00028203,2]
[357156503,1743805842913,-194.95,0.00028203,2]
[357156504,1743805842922,-999.99,0.00028203,2]
[357156505,1743805842931,-1342.90704789,0.000291,3]
[357156506,1743805842940,-1342.90704789,0.000291,3]
[357156507,1743805842949,-350.0,0.00029376,12]
[357156508,1743805842959,-150.67,0.0002999,2]
[357156509,1743805842969,-150.67,0.0002999,2]
[357156511,1743805842978,-7000.0,0.0003,10]
[357156513,1743805842987,-212.0,0.0003,2]
[357156515,1743805842997,-46002.6614526,0.0003,2]
[357156517,1743805843006,-34592.31714279,0.0003,5]
[357156519,1743805843016,-137513.97413532,0.0003,2]
[357156521,1743805843025,-43615.45790276,0.00030187,3]
[357156523,1743805843036,-1000.0,0.00030252,5]
[357156525,1743805843046,-1000.0,0.00030352,5]
[357156527,1743805843055,-504.94309263,0.00030352,5]
[357156529,1743805843065,-1000.0,0.00030788,2]
[357156530,1743805843074,-18824.85618202,0.0003143,4]
[357156531,1743805843083,-1847.6199586,0.000318,2]
[357156533,1743805843092,-425.74,0.00032646,2]
[357156534,1743805843101,-150.67,0.0003299,2]
[357156535,1743805843111,-150.67,0.0003299,2]
[357156536,1743805843120,-150.67,0.0003299,2]
[357156537,1743805843129,-539608.53719016,0.00033,2]
[357156538,1743805843138,-1000.0,0.00033866,2]
[357156539,1743805843147,-168.12,0.00035,2]
[357156540,1743805843156,-789.88333117,0.00035,2]
[357156541,1743805843165,-174.79938505,0.00035,2]
[357156542,1743805843174,-340.52815562,0.00035,2]
[357156543,1743805843182,-7260.52707661,0.00035,2]
[357156544,1743805843192,-851.44330272,0.00035041,2]
[357156545,1743805843201,-171.29331036,0.0003558,2]
[357156546,1743805843209,-150.67,0.00035938,2]
[357156547,1743805843218,-150.67,0.00035938,2]
[357156548,1743805843228,-150.67,0.00035938,2]
[357156549,1743805843238,-150.0,0.00035948,2]
[357156550,1743805843247,-33272.98753065,0.00035948,2]
[357156551,1743805843257,-35800.86093228,0.00035948,2]
[357156552,1743805843267,-7768.03513251,0.00035948,2]
[357156553,1743805843276,-22716.46581716,0.00035948,2]
[357156554,1743805843286,-24343.0917931,0.00035948,2]
[357156555,1743805843295,-571.18320208,0.00035948,2]
[357156556,1743805843305,-1070.81507298,0.00035948,2]
[357156557,1743805843316,-2189.54219783,0.00035948,2]
[357156558,1743805843325,-153.93422751,0.00035948,2]
[357156559,1743805843335,-174.81946708,0.00035948,2]
[357156560,1743805843346,-7063.13342433,0.00035948,2]
[357156561,1743805843356,-550.0,0.00035948,2]
[357156562,1743805843365,-1461.64686481,0.00035948,2]
[357156563,1743805843375,-1004.82296587,0.00035948,2]
[357156564,1743805843384,-4850.02903601,0.00035948,2]
[357156565,1743805843395,-138415.6433899,0.00035948,2]
[357156566,1743805843405,-14903.91781005,0.00035948,2]
[357156567,1743805843414,-228.30883104,0.00035948,2]
[357156568,1743805843424,-173.26772378,0.00035948,2]
[357156569,1743805843434,-3644.03833488,0.00035948,2]
[357156570,1743805843443,-818.8039097,0.00035948,2]
[357156571,1743805843452,-86524.96551391,0.00035948,2]
[357156572,1743805843461,-448.88471056,0.00035948,2]
[357156573,1743805843471,-1064.66688658,0.00035948,2]
[357156574,1743805843480,-21222.6597861,0.00035948,2]
[357156575,1743805843490,-2500.0,0.00035948,2]
[357156576,1743805843499,-577.98402318,0.00035948,2]
[357156577,1743805843508,-341.43056469,0.00035948,2]
[357156579,1743805843518,-900.81513789,0.00035948,2]
[357156580,1743805843527,-480.49811064,0.00035948,2]
[357156581,1743805843538,-10766.52006298,0.00035948,2]
[357156582,1743805843548,-169.85263877,0.00035948,2]
[357156583,1743805843558,-1582.48750141,0.00035948,2]
[357156584,1743805843567,-55464.68672067,0.00035948,2]
[357156585,1743805843576,-46594.69513367,0.00035948,2]
[357156586,1743805843585,-546.34163537,0.00035948,2]
[357156588,1743805843594,-3758.25002661,0.00035948,2]
[357156590,1743805843604,-1008.93900006,0.00035948,2]
[357156591,1743805843613,-363.7799533,0.00035948,2]
[357156592,1743805843622,-2199.34142728,0.00035948,2]
[357156593,1743805843631,-282.90185749,0.00035948,2]
[357156594,1743805843641,-748.13470311,0.00035948,2]
[357156595,1743805843651,-13909.65384464,0.00035948,2]
[357156596,1743805843661,-1831.53795679,0.00035948,2]
[357156597,1743805843670,-1114.47291273,0.00035948,2]
[357156598,1743805843681,-416.10948736,0.00035948,5]
[357156599,1743805843691,-14024.38122074,0.00035948,2]
[357156600,1743805843700,-219.6795429,0.00035948,2]
[357156601,1743805843710,-10169.50182171,0.00035948,2]
[357156602,1743805843719,-8119.98566091,0.00035948,2]
[357156603,1743805843729,-1700.72788556,0.00035948,2]
[357156604,1743805843738,-1426.47347248,0.00035948,2]
[357156605,1743805843748,-202.135095,0.00035948,2]
[357156606,1743805843757,-281.80327086,0.00035948,2]
[357156607,1743805843767,-5665.63032446,0.00035948,2]
[357156608,1743805843777,-1010.15730967,0.00035948,2]
[357156609,1743805843788,-749.38309023,0.00035948,2]
[357156610,1743805843797,-1103.17899418,0.00035948,2]
[357156611,1743805843806,-162.91,0.00035948,2]
[357156612,1743805843816,-161.196318,0.00035948,2]
[357156613,1743805843825,-2166.20115308,0.00035948,2]
[357156614,1743805843835,-150.0,0.00035948,2]
[357156615,1743805843844,-6897.93823744,0.00035948,2]
[357156616,1743805843854,-199.58747662,0.00035948,2]
[357156617,1743805843864,-1000.0,0.00036945,2]
[357156618,1743805843874,-150.67,0.0003699,2]
[357156619,1743805843883,-65034.13679914,0.00037,2]
[357156620,1743805843893,-167.15,0.00037192,2]
[357156621,1743805843902,-880.94407164,0.000372,103]
[357156622,1743805843912,-880.9440716,0.000372,103]
[357156623,1743805843922,-880.9440716,0.000372,103]
[357156624,1743805843931,-880.9440716,0.00037229,104]
[357156625,1743805843941,-5339.32,0.00037918,2]
[357156626,1743805843951,-425.74,0.00038443,2]
[357156627,1743805843960,-2045.14206925,0.00039,120]
[357156628,1743805843969,-1852.42,0.00039297,2]
[357156629,1743805843978,-588.43343924,0.0004,2]
[357156630,1743805843987,-270.83311248,0.0004,7]
[357156631,1743805843997,-261.45805039,0.0004,2]
[357156632,1743805844007,-938.99238702,0.0004,7]
[357156633,1743805844016,-311.68764872,0.0004,2]
[357156634,1743805844025,-378.05420694,0.0004,2]
[357156635,1743805844036,-403.48541538,0.0004,30]
[357156636,1743805844045,-5056.00681027,0.0004,2]
[357156637,1743805844054,-211.88683105,0.0004,2]
[357156638,1743805844063,-5773.8280671,0.0004,30]
[357156639,1743805844072,-1314.55759906,0.00040271,5]
[357156640,1743805844081,-380.1005173,0.00040371,5]
[357156641,1743805844091,-43702.45485539,0.0004048,10]
[357156642,1743805844100,-153.0,0.00041,14]
[357156643,1743805844110,-1220.71750678,0.00041488,30]
[357156644,1743805844119,-1000.0,0.00041607,120]
[357156645,1743805844129,-1066.0,0.00042354,30]
[357156646,1743805844138,-812.1,0.00042431,2]
[357156647,1743805844147,-405.13405367,0.00042431,2]
[357156648,1743805844157,-7989.88677058,0.000425,120]
[357156649,1743805844167,-86363.0,0.000427,2]
[357156650,1743805844177,-150.67,0.0004299,2]
[357156651,1743805844186,-62375.33319443,0.00043,10]
[357156652,1743805844196,-151.0,0.00043,14]
[357156653,1743805844206,-151.0,0.00043,14]
[357156654,1743805844215,-151.0,0.00043,14]
[357156655,1743805844224,-1053.342937,0.00043,14]
[357156656,1743805844233,-151.0,0.00043,14]
[357156657,1743805844242,-1053.342937,0.00043,14]
[357156658,1743805844252,-152.627127,0.00043,14]
[357156659,1743805844262,-151.0,0.00043,14]
[357156660,1743805844271,-880.9440716,0.00043038,120]
[357156661,1743805844280,-1584.46,0.00043138,30]
[357156662,1743805844289,-444.76,0.00043138,30]
[357156663,1743805844298,-444.76,0.00043138,30]
[357156664,1743805844308,-444.76,0.00043138,30]
[357156665,1743805844322,-444.76,0.00043138,30]
[357156666,1743805844331,-1566.52,0.00043138,30]
[357156667,1743805844340,-252.75,0.00043138,30]
[357156668,1743805844350,-151.0,0.0004336,2]
[357156669,1743805844362,-500.0,0.0004337,2]
[357156670,1743805844372,-152.23,0.000436,36]
[357156671,1743805844381,-152.23,0.000436,36]
[357156672,1743805844392,-152.23,0.000436,36]
[357156673,1743805844403,-408.392,0.00043744,68]
[357156674,1743805844412,-345.478,0.00043745,2]
[357156675,1743805844422,-1434.0,0.00043745,2]
[357156676,1743805844431,-543.0,0.00043745,2]
[357156677,1743805844440,-909.0,0.00043745,2]
[357156678,1743805844450,-2831.615,0.00043745,2]
[357156679,1743805844460,-2042.0,0.00043745,2]
[357156680,1743805844470,-1284.0,0.00043745,2]
[357156681,1743805844480,-151.0,0.00043745,2]
[357156682,1743805844489,-3953.0,0.00043745,2]
[357156683,1743805844498,-704.072,0.00043745,2]
[357156684,1743805844507,-845.01,0.00043745,2]
[357156685,1743805844517,-574.0,0.00043745,2]
[357156686,1743805844526,-152.67856202,0.000438,120]
[357156687,1743805844536,-5555.0,0.000438,3]
[357156688,1743805844546,-500.0,0.00043871,10]
[357156689,1743805844555,-528.52405381,0.00043871,10]
[357156690,1743805844565,-621.6045487,0.00043871,10]
[357156691,1743805844575,-425.74,0.00044239,2]
[357156692,1743805844584,-150.67,0.0004439,2]
[357156693,1743805844594,-1034.59153481,0.000444,60]
[357156695,1743805846672,-58.64451776,0.000444,60]
[357156696,1743805954378,-150.00399087,0.00019899,2]
[357156697,1743806826926,-224.6051,0.00019873,2]
[357156702,1743806969014,-14.47562244,0.00019873,2]
[357156703,1743806969042,-150.03717506,0.000199,2]
[357156704,1743806969071,-250.0,0.00019963,2]
[357156705,1743806969098,-150.0,0.0002,2]
[357156706,1743806969126,-250.0,0.00020742,2]
[357156707,1743806969155,-150.0,0.00021917,2]
[357156708,1743806969183,-250.0,0.0002195,2]
[357156709,1743806969212,-773.90757288,0.00022829,2]
[357156710,1743806969240,-773.90757287,0.00022844,2]
[357156711,1743806969269,-150.0,0.00022904,2]
[357156712,1743806969297,-3898.60956839,0.00022929,2]
[357156713,1743806969330,-3247.39205961,0.00022929,2]
[357156714,1743806969554,-3563.54545203,0.00022944,2]
[357156715,1743806969589,-357.88454797,0.00022944,2]
[357156716,1743806969617,-210.51848403,0.00022945,2]
[357156717,1743806969646,-235.49,0.00023045,2]
[357156718,1743806969674,-3268.5,0.00023045,2]
[357156719,1743806969706,-150.0,0.00023287,2]
[357156720,1743806969735,-500.0,0.00023728,2]
[357156721,1743806969763,-474.53680595,0.00023728,2]
[357156722,1743806969791,-500.0,0.00023728,2]
[357156723,1743806969818,-500.0,0.00023728,2]
[357156724,1743806969846,-500.0,0.00023728,2]
[357156725,1743806969874,-114.00767369,0.00023728,2]
[357156726,1743806969906,-385.99232631,0.00023728,2]
[357156727,1743806969934,-500.0,0.00023728,2]
[357156728,1743806969963,-578.66184532,0.00023728,2]
[357156729,1743806969991,-500.0,0.00023728,2]
[357156730,1743806970021,-500.0,0.00023728,2]
[357156731,1743806970049,-500.0,0.00023728,2]
[357156732,1743806970078,-500.0,0.00023728,2]
[357156733,1743806970107,-500.0,0.00023728,2]
[357156734,1743806970137,-500.0,0.00023728,2]
[357156735,1743806970165,-500.0,0.00023728,2]
[357156736,1743806970193,-500.0,0.00023728,2]
[357156737,1743806970222,-500.0,0.00023728,2]
[357156738,1743806970249,-500.0,0.00023728,2]
[357156739,1743806970276,-346.28334001,0.00023728,2]
[357156740,1743806970308,-153.71665999,0.00023728,2]
[357156741,1743806970335,-500.0,0.00023728,2]
[357156742,1743806970362,-500.0,0.00023728,2]
[357156743,1743806970390,-500.0,0.00023728,2]
[357156744,1743806970418,-500.0,0.00023728,2]
[357156745,1743806970450,-500.0,0.00023728,2]
[357156746,1743806970478,-500.0,0.00023728,2]
[357156747,1743806970505,-500.0,0.00023728,2]
[357156748,1743806970532,-850.0,0.00023728,2]
[357156749,1743806970560,-2307.22085165,0.0002373,2]
[357156750,1743806970599,-2373.15087089,0.0002373,2]
[357156757,1743807032343,-371.51000001,0.0002373,2]
[357156758,1743807032355,-251.1895,0.0002373,2]
[357156759,1743807032366,-493.99999992,0.0002373,2]
[357156760,1743807032384,-6178.69301148,0.0002373,2]
[357156761,1743807032393,-250.0,0.00024174,2]
[357156762,1743807032402,-167.62,0.00024619,2]
[357156763,1743807032410,-150.0,0.00024657,2]
[357156764,1743807032419,-250.0,0.00024783,2]
[357156765,1743807032428,-250.0,0.00024806,2]
[357156766,1743807032437,-150.0,0.00025,2]
[357156767,1743807032446,-150.0,0.00026027,2]
[357156768,1743807032455,-250.0,0.00026102,2]
[357156769,1743807032464,-170.56,0.00026849,2]
[357156770,1743807032473,-150.0,0.00027397,2]
[357156771,1743807032482,-1115.14576546,0.00028202,2]
[357156772,1743807032606,-300.0,0.00028202,2]
[357156773,1743807032615,-200.0,0.00028202,15]
[357156774,1743807032624,-1260.73,0.00028203,2]
[357156775,1743807032633,-837.37,0.00028203,2]
[357156776,1743807032642,-999.99,0.00028203,2]
[357156777,1743807032651,-150.99,0.00028203,2]
[357156778,1743807032660,-150.99,0.00028203,2]
[357156779,1743807032669,-265.93822188,0.0002822,5]
[357156780,1743807032679,-200.51471928,0.00028378,2]
[357156781,1743807032689,-167.62,0.00028722,2]
[357156782,1743807032701,-150.0,0.00028767,2]
[357156783,1743807032710,-1185.71037336,0.00029732,2]
[357156784,1743807032720,-150.0,0.0003,2]
[357156785,1743807032729,-150.0,0.00030136,2]
[357156786,1743807032739,-2069.58,0.00030431,2]
[357156787,1743807032748,-420.0,0.00030452,2]
[357156788,1743807032758,-2564.16,0.00030525,2]
[357156789,1743807032767,-1469.8,0.0003077,2]
[357156790,1743807032779,-5764.13,0.00030773,2]
[357156791,1743807032791,-200.51471928,0.00031232,2]
[357156792,1743807032801,-150.0,0.00031506,2]
[357156793,1743807032811,-150.0,0.00031624,2]
[357156794,1743807032820,-1852.42,0.0003187,2]
[357156795,1743807032829,-1000.0,0.00032608,2]
[357156796,1743807032838,-170.56,0.00032646,2]
[357156797,1743807032847,-2069.58,0.00032695,2]
[357156798,1743807032856,-167.62,0.00032825,2]
[357156799,1743807032866,-150.0,0.00032876,2]
[357156800,1743807032875,-587.0,0.00032881,2]
[357156801,1743807032884,-1000.0,0.00033666,2]
[357156802,1743807032893,-2376.0493922,0.00033667,2]